{"text_format":"1","workbook":"xlsx","n_sheets":1,"sheets":["ورقة1"],"not_rendered":{"charts":0,"images":0,"macros":1,"external_links":0,"defined_names":0,"comments":0,"pivot_tables":0},"unopened":[],"bounds":{"document_bytes":16777216,"sheet_cells":100000,"rows_first":2000,"rows_last":500,"rows_between":2000,"halvings":0,"cell_chars":16384,"cell_head_chars":4096},"cells_cut":0,"cells_raw":0,"read":"whole","date_system":"1900"}

{"sheet":"ورقة1","index":0,"n_rows":36,"n_cols":4,"rows_kept":36,"cut":false,"hidden":false,"merged":[]}
[894.48,null,null,{"$f":"NumberToTextEN(A1,\".\",\".\")","v":"Eight Hundred Ninety Four . and Forty Eight ."}]
[2615.86,null,null,{"$f":"NumberToTextEN(A2,\".\",\".\")","v":"Two Thousand Six Hundred Fifteen . and Eighty Six ."}]
[419.08,null,null,{"$f":"NumberToTextEN(A3,\".\",\".\")","v":"Four Hundred Nineteen . and Eight ."}]
[3400.09,null,null,{"$f":"NumberToTextEN(A4,\".\",\".\")","v":"Three Thousand Four Hundred  . and Nine ."}]
[452.27,null,null,{"$f":"NumberToTextEN(A5,\".\",\".\")","v":"Four Hundred Fifty Two . and Twenty Seven ."}]
[2857.11,null,null,{"$f":"NumberToTextEN(A6,\".\",\".\")","v":"Two Thousand Eight Hundred Fifty Seven . and Eleven ."}]
[2958.67,null,null,{"$f":"NumberToTextEN(A7,\".\",\".\")","v":"Two Thousand Nine Hundred Fifty Eight . and Sixty Seven ."}]
[5375.37,null,null,{"$f":"NumberToTextEN(A8,\".\",\".\")","v":"Five Thousand Three Hundred Seventy Five . and Thirty Seven ."}]
[5917.16,null,null,{"$f":"NumberToTextEN(A9,\".\",\".\")","v":"Five Thousand Nine Hundred Seventeen . and Sixteen ."}]
[1980.3,null,null,{"$f":"NumberToTextEN(A10,\".\",\".\")","v":"One Thousand Nine Hundred Eighty  . and Thirty  ."}]
[3171.43,null,null,{"$f":"NumberToTextEN(A11,\".\",\".\")","v":"Three Thousand One Hundred Seventy One . and Forty Three ."}]
[3475.87,null,null,{"$f":"NumberToTextEN(A12,\".\",\".\")","v":"Three Thousand Four Hundred Seventy Five . and Eighty Seven ."}]
[1818.92,null,null,{"$f":"NumberToTextEN(A13,\".\",\".\")","v":"One Thousand Eight Hundred Eighteen . and Ninety Two ."}]
[5848.86,null,null,{"$f":"NumberToTextEN(A14,\".\",\".\")","v":"Five Thousand Eight Hundred Forty Eight . and Eighty Six ."}]
[7654.87,null,null,{"$f":"NumberToTextEN(A15,\".\",\".\")","v":"Seven Thousand Six Hundred Fifty Four . and Eighty Seven ."}]
[446.06,null,null,{"$f":"NumberToTextEN(A16,\".\",\".\")","v":"Four Hundred Forty Six . and Six ."}]
[260.57,null,null,{"$f":"NumberToTextEN(A17,\".\",\".\")","v":"Two Hundred Sixty  . and Fifty Seven ."}]
[1595.31,null,null,{"$f":"NumberToTextEN(A18,\".\",\".\")","v":"One Thousand Five Hundred Ninety Five . and Thirty One ."}]
[3140.32,null,null,{"$f":"NumberToTextEN(A19,\".\",\".\")","v":"Three Thousand One Hundred Forty  . and Thirty Two ."}]
[3385.18,null,null,{"$f":"NumberToTextEN(A20,\".\",\".\")","v":"Three Thousand Three Hundred Eighty Five . and Eighteen ."}]
[2626.86,null,null,{"$f":"NumberToTextEN(A21,\".\",\".\")","v":"Two Thousand Six Hundred Twenty Six . and Eighty Six ."}]
[9743.18,null,null,{"$f":"NumberToTextEN(A22,\".\",\".\")","v":"Nine Thousand Seven Hundred Forty Three . and Eighteen ."}]
[12093.06,null,null,{"$f":"NumberToTextEN(A23,\".\",\".\")","v":"Twelve Thousand Ninety Three . and Six ."}]
[1584.29,null,null,{"$f":"NumberToTextEN(A24,\".\",\".\")","v":"One Thousand Five Hundred Eighty Four . and Twenty Nine ."}]
[2709.22,null,null,{"$f":"NumberToTextEN(A25,\".\",\".\")","v":"Two Thousand Seven Hundred Nine . and Twenty Two ."}]
[2822.71,null,null,{"$f":"NumberToTextEN(A26,\".\",\".\")","v":"Two Thousand Eight Hundred Twenty Two . and Seventy One ."}]
[1615.7,null,null,{"$f":"NumberToTextEN(A27,\".\",\".\")","v":"One Thousand Six Hundred Fifteen . and Seventy  ."}]
[2810.83,null,null,{"$f":"NumberToTextEN(A28,\".\",\".\")","v":"Two Thousand Eight Hundred Ten . and Eighty Three ."}]
[2982.15,null,null,{"$f":"NumberToTextEN(A29,\".\",\".\")","v":"Two Thousand Nine Hundred Eighty Two . and Fifteen ."}]
[641.01,null,null,{"$f":"NumberToTextEN(A30,\".\",\".\")","v":"Six Hundred Forty One . and One ."}]
[2545.89,null,null,{"$f":"NumberToTextEN(A31,\".\",\".\")","v":"Two Thousand Five Hundred Forty Five . and Eighty Nine ."}]
[1339.77,null,null,{"$f":"NumberToTextEN(A32,\".\",\".\")","v":"One Thousand Three Hundred Thirty Nine . and Seventy Seven ."}]
[4096.57,null,null,{"$f":"NumberToTextEN(A33,\".\",\".\")","v":"Four Thousand Ninety Six . and Fifty Seven ."}]
[5528.73,null,null,{"$f":"NumberToTextEN(A34,\".\",\".\")","v":"Five Thousand Five Hundred Twenty Eight . and Seventy Three ."}]
[452.28,null,null,{"$f":"NumberToTextEN(A35,\".\",\".\")","v":"Four Hundred Fifty Two . and Twenty Eight ."}]
[2865.2,null,null,{"$f":"NumberToTextEN(A36,\".\",\".\")","v":"Two Thousand Eight Hundred Sixty Five . and Twenty  ."}]